Cogmind - Beta 13 X1 --- EXPLORER MODE // 2023.07.09 @ 13:43:04 // AFD2020/Player2 Player: Minty Result: Core destroyed Performance ------------- Evolutions (0) 0 Regions Visited (2) 400 Robots Destroyed (22) 110 Value Destroyed (647) 647 Prototype IDs (1) 20 Alien Tech Used (0) 0 Bonus (99) 99 TOTAL SCORE: 1276 Bonus ------- Follower Combat Kills 327 Friendly Fire -228 Cogmind --------- Core Integrity 0/250 Matter 249/300 Energy 197/200 System Corruption 4% Temperature Warm (149) Movement Rolling (110) Location -10/Subcaves Parts ------- > --- POWER (1) -------- Subdweller Power Source > --- PROPULSION (2) --- Subdweller Monowheel Subdweller Monowheel > --- UTILITY (2) ------ Medium Storage Unit Gun Armor > --- WEAPON (3) ------- Subdweller Machine Gun Subdweller Machine Gun Subdweller Machine Gun > --- INVENTORY (10) --- Subdweller Monowheel Improved Heat Sink Subdweller Optics Terrain Scan Processor Terrain Scan Processor Seismic Detector Scrap Shield Datajack Multitool Peak State ------------ > --- POWER ------------ Subdweller Power Source > --- PROPULSION ------- Subdweller Monowheel Subdweller Monowheel > --- UTILITY ---------- Medium Storage Unit Gun Armor > --- WEAPON ----------- Subdweller Laser Subdweller Machine Gun Mini Grenade Launcher Flamer > --- INVENTORY -------- Improved Heat Sink Sensor Array Terrain Scan Processor Terrain Scan Processor Terrain Scan Processor Seismic Detector Scrap Shield Datajack Flamer [Rating: 25] Favorites ----------- Power Light Ion Engine Engine Light Ion Engine Propulsion Aluminum Leg Leg Aluminum Leg Wheel Subdweller Monowheel Utility Medium Storage Unit Storage Medium Storage Unit Processor Targeting Computer Protection Gun Armor Weapon Assault Rifle Energy Gun Medium Laser Ballistic Gun Assault Rifle Launcher Mini Grenade Launcher Special Weapon Flamer Build | -11 -10 -10 ------- Run | Jun Mat Sub Slots Evolved 1 | . 1 . Power . | . . . Propulsion . | . . . Utility . | . . . Weapon 1 | . 1 . Parts Attached 26 | . 3 23 Power 3 | . . 3 Engine 3 | . . 3 Core . | . . . Reactor . | . . . Propulsion 5 | . . 5 Treads . | . . . Leg 1 | . . 1 Wheel 4 | . . 4 Hover . | . . . Flight . | . . . Utility 2 | . 1 1 Device . | . . . Storage . | . . . Processor 1 | . 1 . Hackware . | . . . Protection 1 | . . 1 Artifact . | . . . Weapon 16 | . 2 14 Energy Gun 6 | . 2 4 Energy Cannon . | . . . Ballistic Gun 6 | . . 6 Ballistic Cannon . | . . . Launcher 3 | . . 3 Special Weapon 1 | . . 1 Impact Weapon . | . . . Slashing Weapon . | . . . Piercing Weapon . | . . . Special Melee Weapon . | . . . Unidentified Prototypes 1 | . . 1 Corrupted Parts 2 | . . 2 System Corruption 4 | . . 4 Parts Lost 2 | . . 2 Power 1 | . . 1 Propulsion 1 | . . 1 Utility . | . . . Weapon . | . . . Highest Loss Streak 2 | . . 2 To Critical Strikes . | . . . Average Slot Usage (%) 97 | . 99 97 Engine 11 | . 12 10 Leg 18 | . 25 15 Wheel 3 | . . 4 Storage 11 | . 12 10 Processor 3 | . 11 . Protection 7 | . . 10 Energy Gun 10 | . 11 10 Ballistic Gun 19 | . 25 16 Launcher 10 | . . 14 Special Weapon 1 | . . 2 Naked Turns . | . . . Heaviest Build 32 | 18 20 32 Greatest Support 40 | 20 20 40 Greatest Overweight (x) 9 | . . 9 Average Overweight (x) . | . . . Largest Inventory Capacity 10 | . 10 10 Average Capacity 10 | . 10 10 Most Carried 10 | . 10 10 Average Carried 9 | . 7 9 Final Capacity 10 | 10 10 10 Final Carried 10 | 7 10 10 Class Distribution -------------------- 80% | Hacker-Gunner 16% | Subdweller-Gunner 3% | Hacker-Mutant Dominant Class ---------------- Hacker-Gunner | -10/Materials Hacker-Gunner | -10/Subcaves Resources | -11 -10 -10 ----------- Run | Jun Mat Sub Matter Collected 807 | 200 150 457 Remotely . | . . . Salvage Created 746 | . 348 398 Parts 48 | . 20 28 Haulers Intercepted 1 | . 1 . Recyclers Shooed . | . . . Parts Field Recycled . | . . . Retrieved Matter . | . . . Parts Self-Destructed . | . . . Prevented . | . . . Kills | -11 -10 -10 ------- Run | Jun Mat Sub Combat Hostiles Destroyed 19 | . 7 12 Guns 13 | . 7 6 AOE 6 | . . 6 Classes Destroyed 8 | . 4 4 Hauler 1 | . 1 . Turret 1 | . . 1 Watcher 1 | . 1 . Swarmer 6 | . 1 5 Grunt 7 | . 6 1 Sentry 1 | . . 1 Artisan 1 | . . 1 Subdweller 5 | . . 5 Best Kill Streak 5 | . 3 5 Combat Bots Only 4 | . 3 4 Max Kills in Single Turn 4 | . 1 4 Gunslinging . | . . . Exploded 3 | . . 3 Melee . | . . . Uniques/NPCs Destroyed . | . . . Combat | -11 -10 -10 -------- Run | Jun Mat Sub Damage Taken 711 | . 196 515 Core 115 | . 40 75 Absorbed by Shields . | . . . Ignored by Resistances 448 | . 127 321 Regen/Repaired (Parts) 24 | . 24 . Core Remaining (%) 100 | 100 . . Volleys Fired 53 | . 20 33 Largest 4 | . 3 4 Hottest 220 | . 90 220 Shots Fired 162 | . 59 103 Gun 148 | . 59 89 Cannon . | . . . Launcher 12 | . . 12 Special 2 | . . 2 Kinetic 105 | . 40 65 Thermal 45 | . 19 26 Explosive 9 | . . 9 Electromagnetic 3 | . . 3 Robot Hit Streak 23 | . 19 23 Robot Miss Streak 2 | . 2 2 Penetration Max . | . . . Secondary Targets 1 | . 1 . Max Gunslinging Chain 1 | . 1 . Shots Hit Robots 116 | . 43 73 Core Hits 47 | . 19 28 Critical Kills . | . . . Critical Parts Destroyed 1 | . . 1 Critical Strikes 2 | . . 2 Burn 1 | . . 1 Destroy 1 | . . 1 Melee Attacks . | . . . Impact . | . . . Slashing . | . . . Piercing . | . . . Sneak Attacks . | . . . Combat Hostiles . | . . . Follow-up Attacks . | . . . Damage Inflicted 2065 | . 530 1535 Guns 1442 | . 530 912 Cannons . | . . . Explosions 611 | . . 611 Melee . | . . . Ramming . | . . . Kinetic 1037 | . 355 682 Thermal 469 | . 175 294 Explosive 469 | . . 469 Electromagnetic 90 | . . 90 Impact . | . . . Slashing . | . . . Piercing . | . . . Highest Corruption 4 | . . 4 Average Corruption 2 | . . 2 Corruption Purged . | . . . Corruption Blocked . | . . . Effects 14 | . . 14 Message Errors 5 | . . 5 Heat Flow Errors 1 | . . 1 Energy Discharges 2 | . . 2 Data Loss (minor) 2 | . . 2 Data Loss (major) 1 | . . 1 Misfires 1 | . . 1 Alerts 1 | . . 1 Weapon Failures 1 | . . 1 Overload Shots . | . . . Overflow Damage 21 | . . 21 Projectiles . | . . . Explosions 21 | . . 21 Melee . | . . . Knockbacks . | . . . Impact . | . . . Kinetic . | . . . Secondary . | . . . Self-Inflicted Damage 89 | . . 89 Shots 6 | . . 6 Rammed . | . . . Targets Rammed . | . . . Kicked . | . . . Crushed . | . . . Highest Temperature 193 | . 193 189 Average Temperature 51 | . 57 37 Received Heat Transfer 574 | . 162 412 Siege Activations . | . . . Robots Corrupted . | . . . Combat Hostiles . | . . . Parts Fried . | . . . Impact Corruptions . | . . . Robots Melted . | . . . Combat Hostiles . | . . . Parts Melted 3 | . . 3 Heat Transferred 1259 | . 518 741 Parts Sabotaged . | . . . Parts Stolen . | . . . Parts Stripped . | . . . Power Chain Reactions 2 | . . 2 Missiles Intercepted . | . . . Alert | -11 -10 -10 ------- Run | Jun Mat Sub Peak Influence 307 | . 307 . Initial . | . . . Average 109 | . 109 . Maximum Alert Level 1 | . 1 . Low Security (%) 73 | . 73 . Level 1 26 | . 26 . Level 2 . | . . . Level 3 . | . . . Level 4 . | . . . Level 5 . | . . . High Security . | . . . Max Security . | . . . Squads Dispatched 1 | . 1 . Investigation 1 | . 1 . Extermination . | . . . Reinforcement . | . . . Assault . | . . . Garrison . | . . . Intercept . | . . . Searches Triggered . | . . . Construction Impeded . | . . . Haulers Reinforced . | . . . Active Scanning Responses . | . . . Cargo Convoy Interrupts . | . . . Stealth | -11 -10 -10 --------- Run | Jun Mat Sub Distress Signals 1 | . 1 . Communications Jammed . | . . . Distress Signals . | . . . Times Spotted 59 | . 11 48 Peak Tracking Total 7 | . 3 7 Tactical Retreats 3 | . . 3 Traps | -11 -10 -10 ------- Run | Jun Mat Sub Traps Triggered . | . . . Indirectly . | . . . Trap Hack Attempts . | . . . Triggered . | . . . Disarmed 6 | . 6 . Reprogrammed . | . . . Reused . | . . . Traps Extracted . | . . . Installed . | . . . Triggered . | . . . Machines | -11 -10 -10 ---------- Run | Jun Mat Sub Machines Disabled 7 | . 3 4 Max in Single Turn 1 | . 1 1 Machines Repaired . | . . . Machines Sabotaged . | . . . Overloaded Fab Kills . | . . . Hacking | -11 -10 -10 --------- Run | Jun Mat Sub Machines Accessed 7 | . 6 1 Terminals 5 | . 5 . Fabricators . | . . . Repair Stations 1 | . 1 . Recycling Units . | . . . Scanalyzers . | . . . Garrison Access . | . . . Total Hacks 24 | . 20 4 Successful 20 | . 16 4 Failed 4 | . 4 . Catastrophic . | . . . Database Lockouts . | . . . Manual 2 | . 2 . Terminals 18 | . 18 . Fabricators . | . . . Repair Stations 2 | . 2 . Recycling Units . | . . . Scanalyzers . | . . . Garrison Access . | . . . Terminal Hacks 18 | . 14 4 Record 5 | . 1 4 Emergency Access Points 2 | . 2 . Alert Level 2 | . 2 . Locate Traps 2 | . 2 . Disarm Traps 2 | . 2 . Dispatch Records 1 | . 1 . Surveillance Status 1 | . 1 . Investigation Status 1 | . 1 . Hauler Manifests 1 | . 1 . Zone Layout 1 | . 1 . Fabricator Hacks . | . . . Repair Station Hacks 2 | . 2 . Scan Component 1 | . 1 . Repair 1 | . 1 . Recycling Unit Hacks . | . . . Scanalyzer . | . . . Garrison Access Hacks . | . . . Unauthorized Hacks . | . . . Terminals . | . . . Fabricators . | . . . Repair Stations . | . . . Recycling Units . | . . . Scanalyzers . | . . . Garrison Access . | . . . Data Cores Recovered . | . . . Used . | . . . Hacking Detections 3 | . 3 . Full Trace Events 1 | . 1 . Feedback Events . | . . . Feedback Blocked . | . . . Robot Schematics Acquired . | . . . Robots Built . | . . . Authchips . | . . . Time . | . . . Total Robot Build Rating . | . . . Part Schematics Acquired . | . . . Parts Built . | . . . Authchips . | . . . Time . | . . . Total Part Build Rating . | . . . Parts Repaired 1 | . 1 . Time 26 | . 26 . Parts Recycled . | . . . Recycled Matter . | . . . Retrieved Matter . | . . . Retrieved Components . | . . . Parts Scanalyzed . | . . . Part Schematics Acquired . | . . . Parts Damaged . | . . . Bothacking | -11 -10 -10 ------------ Run | Jun Mat Sub Used RIF Installer . | . . . Robots Hacked . | . . . Non-combat . | . . . Combat . | . . . Robot Hacks Applied . | . . . Relay Couplers Released . | . . . Fabnet Peak Effective % . | . . . Robots Rewired . | . . . Allies Hacked . | . . . Hacks Repelled . | . . . Allies | -11 -10 -10 -------- Run | Jun Mat Sub Total Allies 1 | . 1 . Largest Group 1 | . 1 1 Highest-Rated Group 62 | . 60 62 Highest-Rated Ally 62 | . 60 62 Total Orders . | . . . Ally Attacks 33 | . 5 28 Total Damage 1573 | . 511 1062 Kills 17 | . 8 9 Allies Corrupted . | . . . Allies Melted . | . . . Intel | -11 -10 -10 ------- Run | Jun Mat Sub Robot Analysis Total . | . . . Derelict Logs Recovered 3 | . . 3 Drone Launches . | . . . Drone Recoveries . | . . . Exploration | -11 -10 -10 ------------- Run | Jun Mat Sub Turns Passed 2611 | . 751 1860 Spaces Moved 1488 | 1 441 1046 Core 1 | . . 1 Treads . | . . . Legs 1096 | 1 441 654 Wheels 391 | . . 391 Hover . | . . . Flight . | . . . Fastest Speed 110 | 120 120 110 Average Speed 149 | 120 120 161 Slowest Speed 500 | 120 120 500 Overloaded Moves . | . . . Propulsion Burnouts . | . . . Robots Hopped . | . . . Cave-ins Triggered . | . . . Exploration Rate (%) 45 | 2 74 60 Regions Visited 2 Branch Regions 1 Pre-discovered Areas 2 | . . 2 Known Exits Taken 2 | 1 1 . Unknown Exits Taken . | . . . Scrap Searched 2 | . . 2 Spaces Dug . | . . . Terrain Destroyed 53 | . . 53 Melee . | . . . Projectile . | . . . AOE 53 | . . 53 Terrain Rammed . | . . . Walls Destroyed . | . . . Machines Disabled . | . . . Actions | -11 -10 -10 --------- Run | Jun Mat Sub Total 1776 | . 623 1153 Wait 145 | . 132 13 Move 1486 | . 440 1046 Hop . | . . . Pick Up 25 | . 16 9 Fast Attach 15 | . 1 14 Attach 4 | . 1 3 Detach 5 | . . 5 Swap 7 | . 1 6 Drop 36 | . 12 24 Fire 53 | . 20 33 Melee . | . . . Ram . | . . . Kick . | . . . Crush . | . . . Escape Stasis . | . . . Rewire . | . . . Trap . | . . . Miscellaneous . | . . . Route ------- -11/Junkyard -10/Materials (discovered 5 exits: *Mat x3 / *Min / *Sub) -10/Subcaves (discovered 2 exits: *Mat / *Rec) History --------- Turn | Location | Event 1 | -11/Junkyard | Identified exit to Materials 1 | -11/Junkyard | Discovered exit to Materials (range 0) 1 | -11/Junkyard | Entered Materials 1 | -10/Materials | Evolved 1 slot: Weapon x1 213 | -10/Materials | Identified exit to Materials 213 | -10/Materials | Discovered exit to Materials (range 16) 324 | -10/Materials | Repaired Med. Laser 390 | -10/Materials | Discovered exit to Materials (range 8) 488 | -10/Materials | Discovered exit to Materials (range 11) 606 | -10/Materials | Identified exit to Mines 606 | -10/Materials | Discovered exit to Mines (range 14) 625 | -10/Materials | Build established: Hacker-Gunner 748 | -10/Materials | Identified exit to Subcaves 748 | -10/Materials | Discovered exit to Subcaves (range 3) 752 | -10/Materials | Entered Subcaves 770 | -10/Subcaves | A Subdweller sparked back to life 770 | -10/Subcaves | A Subdweller sparked back to life 770 | -10/Subcaves | A Subdweller sparked back to life 791 | -10/Subcaves | Found Prototype Protection 791 | -10/Subcaves | Identified Gun Armor 793 | -10/Subcaves | Attached Gun Armor, gained temporary slots: Weapon x2 1205 | -10/Subcaves | Core integrity fell below 50% 1230 | -10/Subcaves | Identified exit to Recycling 1230 | -10/Subcaves | Discovered exit to Recycling (range 16) 1528 | -10/Subcaves | Ambushed by Subdwellers from Twisted Machinery 1880 | -10/Subcaves | Discovered exit to Materials (range 14) 1898 | -10/Subcaves | Shifting Twisted Machinery released Barrage Gun 1899 | -10/Subcaves | Shifting Twisted Machinery released Sub. Monowheel 1969 | -10/Subcaves | Visited Clippyterm 2094 | -10/Subcaves | Core integrity fell below 20% 2194 | -10/Subcaves | Ambushed by angry Subdweller bent on revenge 2397 | -10/Subcaves | Build established: Subdweller-Gunner 2513 | -10/Subcaves | Learned Materials garrison access intel 2517 | -10/Subcaves | Learned location of Zion (-7) 2612 | -10/Subcaves | Core destroyed Last Messages --------------- 02545_ Acquired Sub. Laser. 02559_ Searching scrap... 02559_ Found Riot Gun. 02559_ Found Sub. Monowheel. 02559_ Found 31 Matter. 02560_ Acquired 31 matter. 02561_ KG-70H(z): "She is not going to be happy we haven't found any suitable candidates yet." 02564_ Dropped Sub. Monowheel. 02572_ Dropped Terrain Scan Processor. 02572_ Acquired Sub. Monowheel. 02582_ Acquired 27 matter. 02584_ Dropped Sub. Machine Gun. 02588_ Dropped Sub. Laser. 02589_ Acquired Sub. Machine Gun. 02592_ System corrupted: Substantial component data lost. 02604_ System corrupted: Mni. Grenade Launcher failed to launch. 02608_ Dropped Mni. Grenade Launcher. 02608_ Temporary Weapon slot lost. 02610_ Critical hit (Meltdown: +190). Map ----- +----------------------------------------------------+ | ## #####?????# ####???????# ##????????????? | | ????# ##??????????# #?????????????? | | ??# #???????????# #????????????? | | ???# ???????????## ##????????????? | | ###???## ?????????????# ###?????????????? | | #??????### ##?????????????##???????????????? | | #????????####???????????????????????????????? | | ## #???????????????????????????????????????????? | | #?# #???????????????????????????????????????????? | | ??? #???????????????????????????????????????????? | | #????????????????????????????????????????????????? | | #????????????????????????????????????????????????? | | #????????????????????????????????????????????????? | | #???????????????????????????????????????????????? | | ???????????????????????????????????????????????? | | ????????????????????????????????????????????????? | | ????????????????????????????????????????????????? | | ?????????????????????????????????????????????????? | | ?????????????????????????????????????????????????? | | ?????????????????????????????????????????????????? | | #??????##????????????????????????????????????????? | | #?????? ##??????????????????#????????????????????? | | #?????? "?##???????????????&#????????????????????? | | #????## ## #???????????####R#????????????????????? | | ?????#" " ###?????????# @